bitfinex-derivatives/quotes_ETHF0:USTF0_20250709
["timestamp","ask_amount","ask_price","bid_price","bid_amount"]
[1752041190690,20.10785664,2625.1,2625.0,0.00571004]
[1752041190889,12.14685664,2625.1,2625.0,0.00571004]
[1752041191088,20.10685664,2625.1,2625.0,0.00571004]
[1752041195994,20.97875664,2625.1,2625.0,0.00571004]
[1752041196896,0.76188,2624.7,2624.6,5.46362488]
[1752041197094,10.80946664,2624.7,2624.6,2.94062488]
[1752041197292,10.80946664,2624.7,2624.6,0.6848]
[1752041197687,14.74426664,2624.7,2624.6,0.6848]
[1752041203997,6.10176664,2624.7,2624.6,0.6848]
[1752041204202,10.80846664,2624.7,2624.6,1.7044]
[1752041205302,2.85046664,2624.7,2624.6,1.7044]
[1752041205503,10.80746664,2624.7,2624.6,1.7044]
[1752041206501,2.16696664,2624.7,2624.6,1.7044]
[1752041206706,10.12396664,2624.7,2624.6,1.7044]
[1752041207408,2.16696664,2624.7,2624.6,1.7044]
[1752041207602,10.12396664,2624.7,2624.6,1.7044]
[1752041208001,10.12396664,2624.7,2624.6,2.46631]
[1752041208402,10.12396664,2624.7,2624.6,1.7044]
[1752041208602,10.12396664,2624.7,2624.6,2.46631]
[1752041208815,8.71888,2624.7,2624.6,1.7044]
[1752041209307,8.71888,2624.7,2624.6,2.46631]
[1752041210907,0.76188,2624.7,2624.6,2.46631]
[1752041211108,8.71788,2624.7,2624.6,2.46631]
[1752041211410,8.71788,2624.7,2624.6,1.7044]
[1752041212108,8.71788,2624.7,2624.6,2.46631]
[1752041212308,0.76188,2624.7,2624.6,2.46631]
[1752041212908,8.71688,2624.7,2624.6,2.46631]
[1752041213610,8.71688,2624.7,2624.6,1.7044]
[1752041214003,8.71688,2624.7,2624.6,2.46631]
[1752041214402,0.76188,2624.7,2624.6,2.46631]
[1752041214604,1.40508664,2624.8,2624.7,0.76188]
[1752041214605,2.16695664,2624.8,2624.7,0.76188]
[1752041214805,10.12095664,2624.8,2624.7,2.38248]
[1752041215097,10.12093664,2624.8,2624.7,2.38248]
[1752041215898,4.1159,2625.0,2624.9,0.76182]
[1752041216102,13.48222,2625.0,2624.9,2.38242]
[1752041216408,14.88730664,2625.0,2624.9,2.38242]
[1752041216604,16.463,2625.2,2625.0,0.76179]
[1752041216803,0.76178,2625.1,2625.0,0.76179]
[1752041217004,16.463,2625.2,2625.1,1.38967]
[1752041217305,16.463,2625.2,2625.1,2.38237]
[1752041217610,24.416,2625.2,2625.1,2.38237]
[1752041218101,16.463,2625.2,2625.1,2.38237]
[1752041218302,24.416,2625.2,2624.9,2.25582488]
[1752041218503,25.82824,2625.2,2625.1,0.6279]
[1752041218702,0.76182,2624.9,2624.8,4.1135]
[1752041218904,1.41232,2624.9,2624.8,4.7414]
[1752041219403,5.46912,2624.9,2624.8,4.7414]
[1752041220304,5.46912,2624.9,2624.8,4.1135]
[1752041220501,0.76188,2624.7,2624.6,2.25582488]
[1752041220706,0.76191,2624.6,2624.5,5.46362488]
[1752041221007,1.41241,2624.6,2624.5,6.09152488]
[1752041221207,1.41241,2624.6,2624.5,5.46362488]
[1752041222004,1.41241,2624.6,2624.5,6.09152488]
[1752041222205,1.41241,2624.6,2624.5,6.85346488]
[1752041222408,1.41241,2624.6,2624.5,7.08422488]
[1752041222899,1.41241,2624.6,2624.5,6.09152488]
[1752041223506,1.41241,2624.6,2624.5,6.85346488]
[1752041223702,1.41241,2624.6,2624.5,6.09152488]
[1752041224611,6.79281,2624.6,2624.5,6.09152488]
[1752041225310,1.41241,2624.6,2624.5,5.59034]
[1752041225511,9.35708664,2624.7,2624.5,4.8284]
[1752041225707,9.4372,2624.9,2624.5,4.8284]
[1752041225906,4.81864,2624.9,2624.8,0.76185]
[1752041226105,13.41914,2624.9,2624.8,2.38245]
[1752041226705,0.76182,2624.9,2624.8,2.38245]
[1752041226904,8.71182,2624.9,2624.8,5.59025]
[1752041227105,7.95,2624.9,2624.8,5.59025]
[1752041227505,8.71182,2624.9,2624.8,5.59025]
[1752041229515,16.463,2625.2,2625.1,0.76177]
[1752041229713,5.5984,2625.7,2625.6,0.76162]
[1752041230015,7.949,2625.7,2625.6,2.38221]
[1752041230415,9.36109,2625.7,2625.6,2.38221]
[1752041230913,9.36109,2625.7,2625.6,0.76161]
[1752041231110,8.5995,2625.7,2625.6,0.76161]
[1752041231312,8.5995,2625.7,2625.6,1.38951]
[1752041231521,1.41209,2625.7,2625.6,1.6206]
[1752041231709,9.36009,2625.7,2625.5,0.76163]
[1752041231906,8.70952,2626.0,2625.8,0.76155]
[1752041232109,0.76153,2625.9,2625.8,3.2078]
[1752041232311,9.36002,2626.0,2625.9,0.6279]
[1752041232619,1.41203,2625.9,2625.8,4.59726]
[1752041232915,0.6505,2625.9,2625.8,5.58996]
[1752041233110,0.6505,2625.9,2625.8,4.59726]
[1752041233313,0.6505,2625.9,2625.8,5.58996]
[1752041233825,9.35308664,2626.0,2625.9,0.76153]
[1752041234210,10.00358664,2626.0,2625.9,1.38943]
[1752041234411,7.946,2626.1,2626.0,0.7615]
[1752041234611,4.0987,2626.2,2626.1,0.76148]
[1752041234813,12.6942,2626.2,2626.1,1.38938]
[1752041235008,13.45565,2626.2,2626.1,0.76148]
[1752041235215,12.6942,2626.2,2626.1,0.76148]
[1752041235410,14.09928664,2626.2,2626.1,0.76148]
[1752041235619,14.86073664,2626.2,2626.1,0.76148]
[1752041236219,19.39638664,2626.2,2626.1,1.42778]
[1752041236613,20.15783664,2626.2,2626.1,1.42778]
[1752041237018,19.39638664,2626.2,2626.1,1.42778]
[1752041238517,19.39638664,2626.2,2625.8,3.2078]
[1752041238717,5.9277,2626.1,2625.9,0.76153]
[1752041238917,6.5923,2626.1,2625.9,0.76153]
[1752041239119,6.59229,2626.1,2625.9,0.76153]
[1752041239319,13.1092,2626.0,2625.9,0.76153]
[1752041239622,13.7738,2626.0,2625.9,1.42783]
[1752041239816,13.7738,2626.0,2625.9,0.76153]
[1752041239817,7.23588664,2626.0,2625.9,0.76153]
[1752041240020,15.17888664,2626.0,2625.9,0.6663]
[1752041240221,15.94038664,2626.0,2625.9,0.6663]
[1752041240515,15.94038664,2626.0,2625.9,1.42783]
[1752041240516,15.17888664,2626.0,2625.9,1.42783]
[1752041240720,15.94038664,2626.0,2625.9,0.6663]
[1752041241020,15.94038664,2626.0,2625.9,1.42783]
[1752041241221,15.17888664,2626.0,2625.9,1.42783]
[1752041241423,7.943,2626.0,2625.9,2.39943]
[1752041242020,6.26524664,2626.2,2626.0,0.76149]
[1752041242220,8.6066,2626.1,2626.0,1.42779]
[1752041242422,8.6066,2626.1,2626.0,2.39939]
[1752041242624,0.6646,2626.1,2626.0,2.39939]
[1752041242823,8.6066,2626.1,2626.0,2.39939]
[1752041249826,9.36808,2626.1,2626.0,2.39939]
[1752041250430,0.6646,2626.1,2626.0,2.39939]
[1752041250630,8.6036,2626.1,2626.0,2.39939]
[1752041251728,9.36508,2626.1,2626.0,2.39939]
[1752041252225,9.36508,2626.1,2626.0,0.6663]
[1752041252431,0.7615,2626.0,2625.9,0.76151]
[1752041252625,7.0274,2626.0,2625.9,0.76151]
[1752041252821,7.0274,2626.0,2625.8,3.2078]
[1752041252822,0.76153,2625.9,2625.8,3.2078]
[1752041253131,6.36283,2625.9,2625.8,3.96936]
[1752041253531,6.36283,2625.9,2625.8,4.63566]
[1752041255028,0.76153,2625.9,2625.8,4.63566]
[1752041256632,0.76153,2625.9,2625.8,4.8457]
[1752041256834,1.42613,2625.9,2625.8,4.8457]
[1752041257031,1.42613,2625.9,2625.8,5.60726]
[1752041257629,0.76159,2625.7,2625.6,2.25582488]
[1752041257831,0.76159,2625.7,2625.6,0.6663]
[1752041257832,10.10267664,2625.7,2625.6,0.6663]
[1752041258132,10.76727664,2625.7,2625.6,0.6663]
[1752041258431,0.76165,2625.5,2625.4,3.2078]
[1752041258630,2.16673664,2625.5,2625.4,3.8741]
[1752041261136,2.16673664,2625.5,2625.4,0.6663]
[1752041261737,0.76174,2625.2,2625.1,7.311]
[1752041261935,1.42634,2625.2,2625.1,8.9489]
[1752041263641,1.42634,2625.2,2625.1,7.9773]
[1752041263837,6.92014,2625.2,2625.1,7.9773]
[1752041264039,14.9645,2625.2,2624.8,5.46362488]
[1752041264235,0.76182,2624.9,2624.8,3.2078]
[1752041264440,1.42642,2624.9,2624.8,3.8741]
[1752041264737,5.49332,2624.9,2624.8,3.8741]
[1752041265442,10.93622,2624.9,2624.8,0.6663]
[1752041273849,18.86922,2624.9,2624.8,0.6663]
[1752041275444,10.93622,2624.9,2624.8,0.6663]
[1752041275647,18.86822,2624.9,2624.8,0.6663]
[1752041276944,10.93622,2624.9,2624.8,0.6663]
[1752041277150,18.86822,2624.9,2624.8,0.6663]
[1752041278753,0.76188,2624.7,2624.6,4.0668]
[1752041278951,2.79066664,2624.7,2624.6,4.7014]
[1752041279447,2.79066664,2624.7,2624.6,4.0668]
[1752041279652,2.79066664,2624.7,2624.6,4.7014]
[1752041280346,2.79066664,2624.7,2624.6,5.6633]
[1752041281150,0.76188,2624.7,2624.6,5.6633]
[1752041281351,8.69288,2624.7,2624.6,5.6633]
[1752041283857,9.31658,2624.7,2624.6,5.6633]
[1752041284048,8.69288,2624.7,2624.6,5.6633]
[1752041284951,9.31658,2624.7,2624.6,5.6633]
[1752041285254,8.69288,2624.7,2624.6,5.6633]
[1752041285553,8.69188,2624.7,2624.6,5.6633]
[1752041285855,9.31558,2624.7,2624.6,5.6633]
[1752041286555,9.31558,2624.7,2624.6,4.7014]
[1752041287354,9.31558,2624.7,2624.6,5.6633]
[1752041287748,9.31558,2624.7,2624.6,4.7014]
[1752041288554,9.31558,2624.7,2624.6,5.6633]
[1752041290961,9.31558,2624.7,2624.6,6.42521]
[1752041291160,1.38558,2624.7,2624.6,6.42521]
[1752041291362,9.31358,2624.7,2624.6,5.6633]
[1752041291761,9.31358,2624.7,2624.6,6.42521]
[1752041292863,9.31358,2624.7,2624.6,5.6633]
[1752041293460,9.31358,2624.7,2624.6,7.91912488]
[1752041294756,1.38558,2624.7,2624.6,6.95722488]
[1752041294956,9.31158,2624.7,2624.6,2.89042488]
[1752041295162,13.26278,2624.7,2624.6,2.89042488]
[1752041299067,13.26278,2624.7,2624.6,3.87582488]
[1752041301570,13.26278,2624.7,2624.6,2.89042488]
[1752041301873,13.26078,2624.7,2624.6,2.89042488]
[1752041303872,13.26078,2624.7,2624.6,3.87582488]
[1752041304467,4.0669,2624.9,2624.7,0.76188]
[1752041304674,0.76188,2624.7,2624.6,0.76188]
[1752041304872,0.76188,2624.7,2624.6,1.44988]
[1752041305268,0.76188,2624.7,2624.6,2.43528]
[1752041307673,0.76191,2624.6,2624.5,10.56407689]
[1752041307872,0.76191,2624.6,2624.5,12.99941689]
[1752041309478,0.76191,2624.6,2624.5,12.23747689]
[1752041309880,0.76191,2624.6,2624.5,12.99941689]
[1752041310173,0.76191,2624.6,2624.5,12.23747689]
[1752041310375,1.38781,2624.6,2624.5,12.23747689]
[1752041310575,5.28521,2624.6,2624.5,12.23747689]
[1752041311280,4.65931,2624.6,2624.5,12.23747689]
[1752041311779,5.28521,2624.6,2624.5,12.23747689]
[1752041312278,5.28521,2624.6,2624.5,12.62780444]
[1752041312572,1.38781,2624.6,2624.5,12.62780444]
[1752041313174,1.38781,2624.6,2624.5,11.64240444]
[1752041313375,5.37801,2624.6,2624.5,11.64240444]
[1752041314777,5.37801,2624.6,2624.5,1.07832755]
[1752041319373,15.10158664,2624.6,2624.3,2.26139536]
[1752041319581,1.40508664,2624.4,2623.6,4.49063586]
[1752041319779,1.40508664,2623.8,2623.5,5.47603586]
[1752041320079,3.2078,2624.1,2623.7,5.17863586]
[1752041320378,3.2078,2624.1,2623.8,3.767]
[1752041320379,0.76214,2623.9,2623.8,3.767]
[1752041321880,15.2331,2624.1,2623.7,3.8958]
[1752041321881,0.76214,2623.8,2623.7,3.8958]
[1752041322080,2.16722664,2623.8,2623.7,3.8958]
[1752041322678,2.16722664,2623.8,2623.7,3.2078]
[1752041322977,2.16722664,2623.8,2623.7,3.8958]
[1752041323178,2.16722664,2623.8,2623.7,3.2078]
[1752041323373,2.16722664,2623.8,2623.7,3.8958]
[1752041324684,2.16722664,2623.8,2623.7,4.8812]
[1752041324886,2.16722664,2623.8,2623.4,5.47603586]
[1752041324887,0.76223,2623.5,2623.4,5.47603586]
[1752041325077,2.16731664,2623.5,2623.4,5.5724]
[1752041325682,2.16731664,2623.5,2623.4,3.899]
[1752041325881,2.16731664,2623.5,2623.3,0.18559795]
[1752041325882,0.76226,2623.4,2623.3,0.18559795]
[1752041326182,4.48386,2623.4,2623.3,0.18559795]
[1752041326383,4.48386,2623.4,2623.3,1.79749795]
[1752041326582,4.48386,2623.4,2623.3,1.17099795]
[1752041326782,4.48386,2623.4,2623.3,1.79749795]
[1752041328982,4.48386,2623.4,2623.3,1.17099795]
[1752041329382,4.48386,2623.4,2623.3,1.79749795]
[1752041331080,5.88894664,2623.4,2623.3,1.79749795]
[1752041333985,0.76224,2623.5,2623.4,0.76226]
[1752041334378,0.76224,2623.5,2623.4,1.38876]
[1752041334884,0.76224,2623.5,2623.4,2.40216]
[1752041335086,0.76224,2623.5,2623.4,1.6399]
[1752041336085,0.76224,2623.5,2623.4,2.40216]
[1752041336292,0.76224,2623.5,2623.4,1.6399]
[1752041337091,0.76224,2623.5,2623.4,2.40216]
[1752041337394,0.76224,2623.5,2623.4,1.6399]
[1752041337692,0.76224,2623.5,2623.4,2.40216]
[1752041338394,0.76224,2623.5,2623.4,1.6399]
[1752041338994,0.76224,2623.5,2623.4,2.40216]
[1752041339195,0.76224,2623.5,2623.4,1.6399]
[1752041339390,1.40508664,2623.9,2623.4,1.6399]
[1752041339595,0.76217,2623.7,2623.6,3.2078]
[1752041339790,0.76217,2623.7,2623.6,3.8343]
[1752041339989,0.76217,2623.7,2623.6,8.5773]
[1752041340688,2.16725664,2623.7,2623.6,8.5773]
[1752041341892,5.84265664,2623.7,2623.6,0.6265]
[1752041342089,5.08048664,2623.7,2623.3,1.19899795]
[1752041342289,2.16734664,2623.4,2623.3,1.25361188]
[1752041342797,2.16734664,2623.4,2623.2,3.717]
[1752041342798,0.76229,2623.3,2623.2,4.53977131]
[1752041343000,0.76237,2623.0,2622.9,3.2078]
[1752041343296,0.76242,2622.9,2622.7,4.13702536]
[1752041343498,0.76243,2622.8,2622.7,3.37458536]
[1752041343798,0.76246,2622.7,2622.6,3.2078]
[1752041344000,2.16754664,2622.7,2622.6,4.59679]
[1752041344206,2.16754664,2622.7,2622.6,5.61019]
[1752041345005,1.40508664,2622.7,2622.6,5.61019]
[1752041345200,2.16754664,2622.7,2622.6,5.61019]
[1752041345508,1.40508664,2622.7,2622.6,5.61019]
[1752041346003,0.37683479,2623.3,2622.6,11.25278664]
[1752041346199,0.76233,2623.2,2622.9,1.40508664]
[1752041346509,0.7623,2623.3,2623.1,0.76234]
[1752041346700,0.7623,2623.3,2623.2,1.0134]
[1752041346897,2.16738664,2623.3,2623.2,1.0134]
[1752041347705,2.16738664,2623.3,2623.2,1.77572]
[1752041348110,0.37351785,2623.4,2623.3,0.76227]
[1752041348406,1.40508664,2623.5,2623.2,1.7757]
[1752041348709,1.40508664,2623.3,2623.2,1.7757]
[1752041348909,0.76228,2623.4,2623.3,0.76229]
[1752041349109,0.76228,2623.4,2623.2,1.7757]
[1752041349506,0.76228,2623.4,2623.3,1.6399]
[1752041349706,0.76232,2623.2,2623.1,1.0134]
[1752041349903,2.16740664,2623.2,2623.1,1.6399]
[1752041350098,0.76234,2623.1,2623.0,3.6632]
[1752041350304,0.76234,2623.1,2623.0,4.2897]
[1752041350804,2.16741664,2623.2,2623.0,6.06547]
[1752041351005,1.40508664,2623.2,2623.1,1.77574]
[1752041351204,1.40508664,2623.2,2623.1,2.40224]
[1752041351609,2.16740664,2623.2,2623.1,2.40224]
[1752041351810,2.16740664,2623.2,2623.1,1.6399]
[1752041352409,2.16740664,2623.2,2623.1,2.40224]
[1752041353108,2.16740664,2623.2,2623.1,1.6399]
[1752041354206,2.16740664,2623.2,2623.1,2.40224]
[1752041354610,1.40508664,2623.2,2623.1,2.40224]
[1752041355300,0.76231,2623.3,2623.2,0.76232]
[1752041355506,0.76231,2623.3,2623.2,1.38882]
[1752041355707,0.76231,2623.3,2623.2,2.40222]
[1752041356514,2.16739664,2623.3,2623.2,1.6399]
[1752041356714,0.76235,2623.1,2623.0,4.42556]
[1752041356916,1.40508664,2623.1,2623.0,4.42556]
[1752041357116,1.40508664,2623.1,2623.0,5.08526]
[1752041357316,1.40508664,2623.1,2623.0,6.08376]
[1752041357710,3.742,2623.4,2623.0,6.08376]
[1752041357918,0.76234,2623.1,2623.0,5.08526]
[1752041358619,0.76234,2623.1,2623.0,6.08376]
[1752041359019,0.76234,2623.1,2623.0,5.3214]
[1752041359413,4.62284,2623.1,2623.0,5.3214]
[1752041359817,4.62284,2623.1,2623.0,6.08377]
[1752041360213,0.76234,2623.1,2623.0,6.08377]
[1752041360414,2.16741664,2623.2,2623.1,0.76235]
[1752041360608,1.40508664,2623.2,2623.1,2.42055]
[1752041360812,2.16740664,2623.2,2623.1,2.42055]
[1752041361218,1.40508664,2623.2,2623.1,2.42055]
[1752041361419,3.6726,2623.3,2623.2,0.76232]
[1752041361615,1.40508664,2623.3,2623.2,1.42202]
[1752041361815,1.40508664,2623.3,2623.2,2.42052]
[1752041362014,2.16738664,2623.3,2623.2,1.6582]
[1752041362217,2.16738664,2623.3,2623.2,2.42052]
[1752041363518,0.76232,2623.2,2623.1,1.76084]
[1752041363715,4.61982,2623.2,2623.1,1.76084]
[1752041363911,4.61982,2623.2,2623.1,1.6582]
[1752041364115,0.76234,2623.1,2623.0,4.42555]
[1752041364317,6.02782664,2623.1,2623.0,4.42555]
[1752041364522,6.02782664,2623.1,2623.0,4.3229]
[1752041364717,6.02782664,2623.1,2623.0,5.3214]
[1752041365723,0.7624,2622.9,2622.8,0.76243]
[1752041366020,0.7624,2622.9,2622.8,5.79521536]
[1752041366021,2.16748664,2622.9,2622.8,5.79521536]
[1752041366220,2.16748664,2622.9,2622.8,1.6582]
[1752041366413,2.16748664,2622.9,2622.8,2.42063]
[1752041369117,0.76243,2622.8,2622.7,7.34482536]
[1752041369317,4.33883,2622.8,2622.7,9.00302536]
[1752041369822,4.33883,2622.8,2622.7,8.24058536]
[1752041370521,4.33883,2622.8,2622.7,6.58238536]
[1752041371119,4.33883,2622.8,2622.7,7.24208536]
[1752041371320,4.33883,2622.8,2622.7,6.58238536]
[1752041371721,4.33883,2622.8,2622.7,3.8675]
[1752041372526,4.33883,2622.8,2622.7,0.6597]
[1752041378018,4.33883,2622.8,2622.7,1.6582]
[1752041378523,4.33883,2622.8,2622.7,0.6597]
[1752041381621,4.33883,2622.8,2622.7,1.6582]
[1752041381827,4.33883,2622.8,2622.7,0.6597]
[1752041382830,4.33883,2622.8,2622.7,1.6582]
[1752041383029,0.76243,2622.8,2622.7,1.6582]
[1752041383229,0.76243,2622.8,2622.7,4.866]
[1752041383729,0.76243,2622.8,2622.7,5.62846]
[1752041383925,1.40508664,2623.0,2622.8,0.7624]
[1752041384132,0.76237,2623.1,2623.0,1.42206]
[1752041384532,1.37912472,2623.1,2623.0,2.42056]
[1752041386833,0.76232,2623.2,2623.1,0.76234]
[1752041387035,1.37922195,2623.2,2623.1,0.76234]
[1752041387234,2.14154195,2623.2,2623.1,1.44394]
[1752041387634,2.14154195,2623.2,2623.1,2.40564]
[1752041387835,0.76232,2623.2,2623.1,2.40564]
[1752041388433,5.37518664,2623.3,2623.2,0.76232]
[1752041388630,1.37817406,2623.3,2623.2,2.40562]
[1752041389033,2.14046406,2623.3,2623.2,2.40562]
[1752041389435,2.14046406,2623.3,2623.2,1.6433]
[1752041389636,2.14046406,2623.3,2623.2,2.40562]
[1752041390032,1.40508664,2624.3,2623.3,1.90572]
[1752041390232,0.76209,2624.0,2623.9,3.2078]
[1752041390534,0.6735,2624.0,2623.9,4.8511]
[1752041390736,0.76208,2624.0,2623.9,4.8511]
[1752041390936,0.76208,2624.0,2623.9,5.61321]
[1752041391525,1.43558,2624.0,2623.9,5.61321]
[1752041391728,1.43558,2624.0,2623.9,4.8511]
[1752041391932,1.43558,2624.0,2623.9,3.2078]
[1752041392134,4.3854,2624.0,2623.7,1.72386]
[1752041392333,1.40508664,2623.8,2623.7,0.76216]
[1752041392535,4.58353,2623.9,2623.8,0.76214]
[1752041392732,6.66211664,2623.9,2623.8,1.44374]
[1752041393134,6.66211664,2623.9,2623.8,2.40544]
[1752041393333,5.89998664,2623.9,2623.8,2.40544]
[1752041393535,5.11698664,2624.0,2623.9,0.76211]
[1752041393841,5.11698664,2624.0,2623.9,2.40541]
[1752041394135,5.87906664,2624.0,2623.9,1.6433]
[1752041394432,0.76211,2623.9,2623.8,3.96992]
[1752041394637,0.6735,2623.9,2623.8,5.61322]
[1752041395037,1.43561,2623.9,2623.8,3.2078]
[1752041395234,0.76219,2623.7,2623.5,0.76221]
[1752041395437,2.84078664,2623.6,2623.5,1.44381]
[1752041395830,0.76223,2623.5,2623.4,3.77259742]
[1752041396031,1.43573,2623.5,2623.4,4.45419742]
[1752041396239,1.43573,2623.5,2623.4,2.81089742]
[1752041396440,1.43573,2623.5,2623.4,3.49249742]
[1752041396736,4.2195,2623.5,2623.4,0.76226]
[1752041397041,2.07858664,2623.5,2623.4,2.40556]
[1752041397542,2.84081664,2623.5,2623.4,2.40556]
[1752041399742,2.07858664,2623.5,2623.4,2.40556]
[1752041400742,2.84081664,2623.5,2623.4,0.97579572]
[1752041400938,2.84081664,2623.5,2623.4,0.6816]
[1752041401339,2.84081664,2623.5,2623.4,1.44386]
[1752041401739,2.84081664,2623.5,2623.4,0.72898019]
[1752041402045,2.84081664,2623.5,2623.4,1.41058019]
[1752041402439,2.84081664,2623.5,2623.0,3.2078]
[1752041402440,10.99998664,2623.5,2623.0,3.2078]
[1752041402641,0.76233,2623.2,2623.1,3.6095]
[1752041402840,0.76232,2623.2,2623.1,4.2911]
[1752041403244,1.43582,2623.2,2623.1,4.2911]
[1752041403641,1.43582,2623.2,2623.1,3.6095]
[1752041403844,2.45922,2623.2,2623.1,3.10903318]
[1752041404145,2.45922,2623.2,2622.7,3.2078]
[1752041404146,0.76243,2622.8,2622.7,3.2078]
[1752041404447,1.43593,2622.8,2622.7,3.8894]
[1752041404748,1.43593,2622.8,2622.7,2.4593951]
[1752041405142,1.43593,2622.8,2622.7,1.7777951]
[1752041405446,0.76246,2622.7,2622.6,0.76247]
[1752041405642,0.6735,2622.7,2622.6,1.44407]
[1752041405846,0.76246,2622.7,2622.4,5.17592761]
[1752041406240,0.6735,2622.5,2622.4,2.55436664]
[1752041406446,0.76255,2622.4,2622.3,3.38411097]
[1752041406645,5.4869,2622.4,2622.2,4.14670097]
[1752041406847,5.4869,2622.4,2622.2,0.76259]
[1752041407144,0.76258,2622.3,2622.1,3.6793]
[1752041407348,0.76258,2622.3,2622.1,4.44191]
[1752041407349,0.6735,2622.2,2622.1,4.44191]
[1752041407546,1.78598,2622.3,2622.1,4.44191]
[1752041407747,1.78598,2622.3,2622.1,3.72676166]
[1752041407943,1.78598,2622.3,2622.2,0.76261]
[1752041408139,1.6969,2622.2,2622.1,3.72677166]
[1752041408343,2.16766664,2622.3,2622.2,0.76261]
[1752041408643,1.40508664,2622.3,2622.2,0.76261]
[1752041408847,0.6735,2622.3,2622.1,0.43700962]
[1752041409148,1.6969,2622.3,2622.1,0.43700962]
[1752041409651,1.6969,2622.3,2622.2,0.76261]
[1752041410350,5.95764664,2622.4,2622.3,0.76258]
[1752041410649,7.65454664,2622.4,2622.3,0.76258]
[1752041410949,3.5256,2622.5,2622.4,0.76255]
[1752041411150,4.1991,2622.5,2622.4,0.76255]
[1752041411750,4.1991,2622.5,2622.1,2.13638688]
[1752041411944,4.1991,2622.5,2622.4,0.76255]
[1752041412441,8.66982,2622.5,2622.4,0.76255]
[1752041412852,8.66982,2622.5,2622.0,5.85175135]
[1752041413349,8.66982,2622.5,2622.4,0.76255]
[1752041413952,0.76256,2622.4,2622.0,1.40508664]
[1752041414148,3.2078,2622.1,2621.8,3.38411097]
[1752041414347,1.40508664,2622.0,2621.9,0.76267]
[1752041414554,1.40508664,2622.0,2621.9,0.76269]
[1752041415249,2.16774664,2622.0,2621.8,0.76271]
[1752041415454,5.18138664,2622.0,2621.6,3.7989]
[1752041415653,1.40508664,2622.0,2621.9,0.76269]
[1752041415854,4.61288664,2622.0,2621.9,0.76269]
[1752041416152,3.2078,2622.0,2621.6,3.56020214]
[1752041416354,1.40508664,2622.2,2622.1,0.76264]
[1752041416551,4.61288664,2622.2,2621.7,1.90689]
[1752041416750,2.08678664,2622.2,2622.1,0.76264]
[1752041416953,5.29458664,2622.2,2622.1,0.76264]
[1752041417555,6.31358664,2622.2,2622.1,0.76264]
[1752041417758,1.40508664,2621.8,2621.7,0.76275]
[1752041417950,5.29458664,2621.8,2621.7,0.76275]
[1752041418855,4.61288664,2621.8,2621.7,0.76275]
[1752041419056,5.29458664,2621.8,2621.7,0.76275]
[1752041419755,5.29458664,2621.8,2621.5,2.87134714]
[1752041419951,5.29458664,2621.8,2621.7,0.76275]
[1752041420846,5.29458664,2621.8,2621.5,2.87134714]
[1752041421056,5.29458664,2621.8,2621.7,0.76275]
[1752041421254,3.2078,2621.3,2620.7,7.85861276]
[1752041421456,3.2078,2621.3,2620.2,11.22658965]
[1752041421457,5.29458664,2620.8,2620.2,11.98974965]
[1752041421659,4.61288664,2620.5,2620.4,0.76313]
[1752041421955,3.97082,2620.8,2620.4,0.76311]
[1752041422152,5.29458664,2620.8,2620.3,3.7866]
[1752041422348,3.8895,2620.8,2620.3,7.5717]
[1752041422554,6.05761664,2620.8,2620.5,0.76308]
[1752041422755,7.07661664,2620.8,2620.5,0.76308]
[1752041422956,4.9085,2620.8,2620.4,0.76311]
[1752041423265,3.2078,2620.5,2620.4,0.76313]
[1752041423460,3.8895,2620.5,2620.3,4.54974]
[1752041423656,4.9085,2620.5,2620.3,3.7866]
[1752041423862,3.68529529,2620.4,2620.0,0.18559795]
[1752041424060,7.31901529,2620.1,2620.0,0.18559795]
[1752041424262,5.67172,2620.1,2620.0,0.18559795]
[1752041424463,3.8895,2620.1,2620.0,0.18559795]
[1752041424663,3.8895,2620.1,2620.0,0.94884795]
[1752041424664,3.2078,2620.1,2620.0,0.94884795]
[1752041425460,3.8895,2620.1,2620.0,0.94884795]
[1752041425661,3.2078,2620.1,2620.0,0.94884795]
[1752041425862,3.2078,2620.1,2619.6,3.7851]
[1752041425863,4.9085,2620.1,2619.6,3.7851]
[1752041426061,1.019,2620.0,2619.8,0.76328]
[1752041426261,0.6817,2619.9,2619.8,0.76329]
[1752041426563,1.7007,2619.9,2619.7,0.76332]
[1752041426761,1.44499,2619.9,2619.6,0.76335]
[1752041426962,1.019,2619.8,2619.7,0.76333]
[1752041427165,2.66629529,2620.0,2619.9,0.76328]
[1752041427365,0.6817,2619.9,2619.8,0.76331]
[1752041429462,4.2268,2620.1,2619.3,6.30689529]
[1752041429463,3.2078,2620.1,2620.0,0.76325]
[1752041429962,1.019,2620.5,2620.4,0.76313]
[1752041430163,4.9085,2620.5,2620.4,0.76313]
[1752041430764,4.9085,2620.5,2619.9,7.0029]
[1752041430765,5.67161,2620.5,2620.3,0.76315]
[1752041430965,1.019,2620.4,2620.3,0.76315]
[1752041431165,1.7007,2620.4,2619.9,3.55624593]
[1752041431365,1.019,2620.3,2620.1,0.7632]
[1752041431564,1.7007,2620.2,2620.1,0.7632]
[1752041431759,0.6817,2620.2,2620.1,0.7632]
[1752041431965,0.6817,2620.2,2620.1,0.76319]
[1752041432365,1.7007,2620.2,2620.1,0.76319]
[1752041433470,4.9085,2620.2,2620.1,0.76319]
[1752041433968,3.8895,2620.2,2620.1,0.76319]
[1752041434270,3.2078,2620.2,2620.1,0.76319]
[1752041435367,3.8895,2620.2,2620.1,0.76319]
[1752041436564,3.8895,2620.2,2620.1,0.76322]
[1752041436764,4.9085,2620.2,2619.9,3.5162]
[1752041436964,0.76326,2620.0,2619.8,0.76329]
[1752041437160,1.7007,2619.9,2619.8,0.76331]
[1752041437364,8.6831,2619.9,2619.3,3.2078]
[1752041437566,8.6831,2619.9,2619.4,0.76341]